bitfinex/quotes_SOLUSD_20250118
["timestamp","ask_amount","ask_price","bid_price","bid_amount"]
[1737237246418,12.15279149,253.72,253.62,12.15279149]
[1737237246728,23.776884,253.66,253.6,12.15279149]
[1737237246908,3.9419,253.69,253.61,0.59140938]
[1737237247112,4.59745358,253.68,253.6,12.15279149]
[1737237247317,4.59745358,253.68,253.59,19.4174478]
[1737237247530,23.776884,253.67,253.59,19.4174478]
[1737237247726,24.36933758,253.67,253.59,19.4174478]
[1737237248026,24.36933758,253.67,253.6,0.5914076]
[1737237248233,28.31153758,253.67,253.6,0.5914076]
[1737237248525,28.31153758,253.67,253.59,19.4174478]
[1737237250931,28.31153758,253.67,253.6,0.5914109]
[1737237252330,28.31153758,253.67,253.59,19.4174478]
[1737237253029,43.1943318,253.63,253.53,19.4174478]
[1737237253247,23.776884,253.61,253.53,19.4174478]
[1737237253426,0.59245358,253.62,253.54,0.5915568]
[1737237253622,23.776884,253.61,253.54,0.5915568]
[1737237253817,23.776884,253.61,253.53,19.4174478]
[1737237254017,23.776884,253.59,253.53,19.4174478]
[1737237255138,3.9435,253.58,253.53,19.4174478]
[1737237258719,0.59245358,253.62,253.53,19.4174478]
[1737237258944,23.943,253.61,253.55,19.4174478]
[1737237259533,0.59245358,253.66,253.58,19.4174478]
[1737237259730,4.53465358,253.66,253.58,19.4174478]
[1737237260449,43.776884,253.65,253.58,19.4174478]
[1737237260833,3.9425,253.64,253.58,19.4174478]
[1737237262843,4.005,253.68,253.62,19.4174478]
[1737237263049,4.005,253.68,253.64,19.4174478]
[1737237263543,0.063,253.68,253.65,0.59130726]
[1737237263744,0.063,253.68,253.66,19.4174478]
[1737237263952,0.063,253.68,253.67,0.59123378]
[1737237265549,0.063,253.74,253.67,0.59123378]
[1737237265740,0.063,253.74,253.73,19.4174478]
[1737237267743,0.063,253.74,253.73,68.2026766]
[1737237267949,0.063,253.74,253.73,0.590897]
[1737237268257,0.063,253.74,253.73,19.4174478]
[1737237268435,0.063,253.74,253.71,19.4174478]
[1737237268750,0.063,253.74,253.72,0.59113439]
[1737237269247,4.0041,253.74,253.67,19.4174478]
[1737237269750,0.063,253.74,253.69,19.4174478]
[1737237270045,0.063,253.74,253.73,19.4174478]
[1737237273282,0.063,253.74,253.69,19.4174478]
[1737237273577,0.063,253.74,253.67,20.00848918]
[1737237274158,0.063,253.74,253.69,19.4174478]
[1737237274359,0.063,253.74,253.7,0.59112775]
[1737237274561,0.063,253.74,253.73,19.4174478]
[1737237274963,0.063,253.74,253.71,19.4174478]
[1737237275164,0.063,253.74,253.69,19.4174478]
[1737237275383,0.063,253.74,253.7,0.59115036]
[1737237276481,19.4174478,253.72,253.64,20.00863898]
[1737237276785,20.00990138,253.72,253.64,0.59119118]
[1737237277367,20.00990138,253.72,253.63,0.5912796]
[1737237278273,3.9415,253.71,253.64,19.4174478]
[1737237278469,3.9415,253.71,253.65,0.59127727]
[1737237280867,24.36933758,253.7,253.62,19.4174478]
[1737237281068,23.776884,253.7,253.63,0.59135949]
[1737237281984,27.718484,253.7,253.63,0.59135949]
[1737237282183,23.776884,253.68,253.55,20.0]
[1737237282382,23.776884,253.68,253.53,0.62132293]
[1737237282383,23.776884,253.66,253.59,19.4174478]
[1737237282562,0.59245358,253.65,253.59,19.4174478]
[1737237283076,23.776884,253.64,253.57,19.4174478]
[1737237283472,0.59245358,253.63,253.57,19.4174478]
[1737237283672,3.9433,253.59,253.53,0.03]
[1737237283876,0.59245358,253.58,253.53,0.03]
[1737237284072,23.776884,253.57,253.53,0.03]
[1737237284261,19.4174478,253.6,253.53,0.03]
[1737237284466,23.3603478,253.62,253.53,19.4474478]
[1737237284665,23.776884,253.61,253.54,0.59149784]
[1737237284967,3.9429,253.62,253.54,0.59149784]
[1737237285586,23.3597478,253.66,253.57,19.4174478]
[1737237285787,4.53495358,253.65,253.58,0.59141252]
[1737237286490,4.53495358,253.65,253.57,19.4174478]
[1737237286685,4.53495358,253.65,253.58,0.59146694]
[1737237289075,19.4174478,253.66,253.58,0.59144628]
[1737237289274,27.719084,253.67,253.59,19.4174478]
[1737237289476,28.31153758,253.67,253.59,19.4174478]
[1737237290371,27.719084,253.67,253.59,19.4174478]
[1737237291192,0.59245358,253.66,253.59,19.4174478]
[1737237291392,3.9424,253.65,253.59,19.4174478]
[1737237291895,43.1943318,253.64,253.57,0.03]
[1737237292187,23.776884,253.62,253.57,0.03]
[1737237292990,3.943,253.61,253.57,0.03]
[1737237293888,23.776884,253.6,253.57,0.03]
[1737237294074,23.776884,253.58,253.57,0.03]
[1737237294494,0.59245358,253.59,253.57,0.03]
[1737237294702,8.98,253.72,253.58,19.4174478]
[1737237294703,19.4174478,253.67,253.58,19.4174478]
[1737237295001,43.1943318,253.65,253.57,0.03]
[1737237295201,3.9427,253.63,253.57,0.62147272]
[1737237295500,3.9427,253.63,253.57,1.5955]
[1737237299299,3.9427,253.63,253.57,2.1869718]
[1737237300504,23.776884,253.62,253.57,1.5955]
[1737237300712,23.776884,253.58,253.53,0.03]
[1737237300883,43.1943318,253.54,253.53,0.03]
[1737237301082,43.78678538,253.54,253.53,0.03]
[1737237301283,19.4174478,253.56,253.53,0.03]
[1737237301491,0.59245358,253.56,253.53,0.03]
[1737237301789,3.98,253.58,253.54,19.4174478]
[1737237302086,23.776884,253.61,253.54,19.4174478]
[1737237302285,4.53565358,253.6,253.54,19.4174478]
[1737237302597,3.9432,253.6,253.54,19.4174478]
[1737237303108,23.776884,253.59,253.54,19.4174478]
[1737237303408,12.1441078,253.58,253.53,0.03]
[1737237303698,23.776884,253.56,253.53,0.03]
[1737237303996,0.59245358,253.55,253.53,0.03]
[1737237304399,27.720984,253.54,253.53,0.03]
[1737237304602,3.943,253.61,253.53,0.03]
[1737237304805,0.59245358,253.6,253.53,0.03]
[1737237304987,43.776884,253.59,253.53,0.03]
[1737237305187,20.0,253.46,253.34,0.59162446]
[1737237305397,20.0,253.38,253.33,0.03]
[1737237305596,12.73656138,253.37,253.33,0.03]
[1737237306097,12.1441078,253.35,253.33,0.03]
[1737237306314,23.776884,253.32,253.26,5.85776432]
[1737237306599,0.59245358,253.32,253.25,12.1441078]
[1737237307215,3.9461,253.42,253.31,32.1441078]
[1737237307385,0.59245358,253.44,253.31,32.1441078]
[1737237307386,19.45320483,253.46,253.35,19.45320483]
[1737237307591,0.59245358,253.48,253.4,19.45320483]
[1737237307802,19.45320483,253.47,253.36,20.04509501]
[1737237307995,19.45320483,253.45,253.34,19.45320483]
[1737237308203,23.776884,253.43,253.34,19.45320483]
[1737237308407,27.722984,253.41,253.33,1.597]
[1737237308704,23.776884,253.39,253.33,1.597]
[1737237308886,0.59245358,253.38,253.33,1.597]
[1737237309311,23.776884,253.39,253.33,1.597]
[1737237309513,0.59245358,253.38,253.33,1.597]
[1737237310007,43.23008883,253.37,253.28,25.64560483]
[1737237310184,43.23008883,253.35,253.26,1.5371]
[1737237310384,23.776884,253.31,253.23,19.45320483]
[1737237310683,0.59245358,253.3,253.22,6.208]
[1737237310880,0.59245358,253.3,253.22,6.80026776]
[1737237311685,19.45320483,253.37,253.27,19.48320483]
[1737237311887,0.59245358,253.36,253.28,0.59212077]
[1737237312085,23.776884,253.35,253.28,0.59212077]
[1737237312301,0.59245358,253.34,253.27,0.03]
[1737237312506,2.05,297.0,253.27,19.48320483]
[1737237312507,19.45320483,253.37,253.27,19.48320483]
[1737237312708,3.9463,253.4,253.31,19.45320483]
[1737237312896,23.776884,253.38,253.31,19.45320483]
[1737237313501,19.45320483,253.41,253.32,0.59206364]
[1737237313813,23.776884,253.4,253.33,19.45320483]
[1737237314201,23.776884,253.4,253.34,0.59200467]
[1737237314508,23.776884,253.4,253.33,19.45320483]
[1737237314711,23.776884,253.4,253.34,0.59200935]
[1737237315007,23.776884,253.4,253.33,19.45320483]
[1737237315188,19.45320483,253.43,253.34,0.59201017]
[1737237315390,19.45320483,253.45,253.35,19.45320483]
[1737237315702,23.776884,253.43,253.36,0.59195357]
[1737237315998,0.59245358,253.44,253.36,0.59195357]
[1737237316210,0.59245358,253.44,253.35,19.45320483]
[1737237316409,23.776884,253.43,253.36,0.59196465]
[1737237316707,20.0,253.4,253.27,0.62196143]
[1737237317009,43.23008883,253.43,253.32,19.45320483]
[1737237317206,19.45320483,253.47,253.37,19.45320483]
[1737237317388,0.59245358,253.46,253.38,0.5918714]
[1737237318714,43.23008883,253.45,253.35,19.45320483]
[1737237319016,23.776884,253.43,253.36,0.59195556]
[1737237319395,0.59245358,253.44,253.36,0.59195556]
[1737237319614,19.45320483,253.45,253.36,0.59195556]
[1737237319917,43.82254241,253.45,253.36,0.59195556]
[1737237320515,3.9458,253.43,253.35,20.04514376]
[1737237320711,4.53825358,253.43,253.35,20.04514376]
[1737237321011,23.776884,253.38,253.29,19.45320483]
[1737237321196,23.776884,253.36,253.28,6.0641]
[1737237321509,0.59245358,253.35,253.28,6.0641]
[1737237322013,20.04565841,253.35,253.27,2.26296695]
[1737237322203,23.99275841,253.35,253.27,2.26296695]
[1737237323312,23.776884,253.28,253.27,0.03]
[1737237323513,24.36933758,253.28,253.27,0.03]
[1737237323695,24.36933758,253.28,253.21,0.03]
[1737237323895,43.23008883,253.22,253.21,0.03]
[1737237324090,43.82254241,253.22,253.21,0.03]
[1737237324502,19.45320483,253.22,253.21,0.03]
[1737237324704,19.45320483,253.26,253.21,0.03]
[1737237325014,0.59245358,253.25,253.21,0.03]
[1737237325411,19.45320483,253.26,253.21,0.03]
[1737237325604,43.23008883,253.24,253.21,0.03]
[1737237325916,43.23008883,253.22,253.21,0.03]
[1737237326799,20.0,253.16,253.15,0.03]
[1737237327010,23.776884,253.15,253.05,0.03]
[1737237327304,23.776884,253.11,253.05,0.03]
[1737237327506,43.23008883,253.09,253.05,0.03]
[1737237327715,23.776884,253.07,253.05,0.03]
[1737237328007,24.36933758,253.06,253.05,0.03]
[1737237330813,0.59245358,253.14,253.05,0.03]
[1737237331112,19.45320483,253.16,253.06,19.45320483]
[1737237331300,19.45320483,253.12,253.05,0.03]
[1737237331707,0.59245358,253.11,253.05,0.03]
[1737237332015,24.36933758,253.13,253.05,0.03]
[1737237332418,28.31993758,253.13,253.05,0.03]
[1737237334812,23.776884,253.11,253.05,0.03]
[1737237335010,0.59245358,253.1,253.05,0.03]
[1737237335209,20.04565841,253.18,253.08,19.45320483]
[1737237335419,23.99535841,253.18,253.08,19.45320483]
[1737237335616,20.04565841,253.18,253.09,0.59261204]
[1737237335817,0.063,253.15,253.09,0.59261204]
[1737237337827,0.063,253.15,253.1,19.45320483]
[1737237338018,0.063,253.15,253.14,19.45320483]
[1737237338319,0.063,253.15,253.11,0.59248952]
[1737237338507,0.063,253.15,253.14,19.45320483]
[1737237341822,0.59245358,253.29,253.17,20.0]
[1737237342023,23.776884,253.28,253.22,19.45320483]
[1737237342219,0.59245358,253.29,253.24,19.45320483]
[1737237342420,19.45320483,253.36,253.26,19.45320483]
[1737237342607,0.59245358,253.4,253.2,6.1396]
[1737237342608,3.9465,253.39,253.3,19.45320483]
[1737237342808,0.59245358,253.38,253.31,0.59209277]
[1737237343008,0.59245358,253.39,253.32,19.45320483]
[1737237343224,0.59245358,253.41,253.33,0.59205249]
[1737237343726,43.776884,253.4,253.33,0.59205249]
[1737237343921,0.59245358,253.41,253.34,19.45320483]
[1737237344125,0.65545358,253.44,253.36,19.45320483]
[1737237344313,23.776884,253.43,253.36,19.45320483]
[1737237344814,20.65545358,253.44,253.36,19.45320483]
[1737237345128,23.776884,253.43,253.36,19.45320483]
[1737237345510,20.65545358,253.44,253.36,19.45320483]
[1737237345712,0.063,253.44,253.4,19.45320483]
[1737237347728,19.45320483,253.43,253.34,20.04511414]
[1737237347913,23.776884,253.41,253.34,19.45320483]
[1737237348110,0.59245358,253.4,253.34,19.45320483]
[1737237348428,24.36933758,253.42,253.34,19.45320483]
[1737237348825,0.063,253.44,253.4,19.45320483]
[1737237351018,0.063,253.44,253.27,6.1396]
[1737237351019,3.946,253.42,253.34,19.45320483]
[1737237351225,0.59245358,253.41,253.34,19.45320483]
[1737237351530,23.776884,253.4,253.34,19.45320483]
[1737237351730,24.36933758,253.4,253.34,19.45320483]
[1737237352029,23.776884,253.41,253.34,19.45320483]
[1737237352229,0.59245358,253.4,253.34,19.45320483]
[1737237352842,23.776884,253.38,253.3,19.45320483]
[1737237353029,19.45320483,253.31,253.21,19.45320483]
[1737237353237,43.23008883,253.29,253.21,19.45320483]
[1737237353532,0.59245358,253.28,253.21,19.45320483]
[1737237354030,23.776884,253.27,253.19,20.04551511]
[1737237354218,23.776884,253.25,253.19,19.45320483]
[1737237354414,0.59245358,253.24,253.19,19.45320483]
[1737237354728,0.59245358,253.32,253.23,19.45320483]
[1737237355029,0.59245358,253.32,253.12,11.3799]
[1737237355030,23.776884,253.26,253.17,19.45320483]
[1737237355225,23.776884,253.24,253.17,19.45320483]
[1737237355633,0.59245358,253.25,253.19,19.45320483]
[1737237355823,0.59245358,253.26,253.19,19.45320483]
[1737237356533,23.776884,253.26,253.19,19.45320483]
[1737237356834,19.45320483,253.33,253.23,19.45320483]
[1737237357134,23.776884,253.29,253.23,19.45320483]
[1737237357322,24.36933758,253.29,253.21,19.45320483]
[1737237358437,28.31733758,253.29,253.21,19.45320483]
[1737237358820,19.45320483,253.31,253.23,19.45320483]
[1737237359128,23.776884,253.29,253.23,19.45320483]
[1737237359440,43.23008883,253.27,253.17,19.45320483]
[1737237359641,0.59245358,253.26,253.18,0.59236808]
[1737237359937,0.59245358,253.26,253.19,19.45320483]
[1737237360838,19.45320483,253.33,253.22,19.45320483]
[1737237361026,23.776884,253.31,253.22,19.45320483]
[1737237361228,23.776884,253.29,253.22,19.45320483]
[1737237361437,23.776884,253.27,253.18,0.59232344]
[1737237361624,0.59245358,253.26,253.18,0.59232344]
[1737237361821,23.776884,253.25,253.16,19.45320483]
[1737237362021,0.59245358,253.24,253.16,19.45320483]
[1737237362237,23.776884,253.23,253.16,19.45320483]
[1737237362426,19.45320483,253.27,253.16,19.45320483]
[1737237362427,0.59245358,253.22,253.16,19.45320483]
[1737237362628,23.776884,253.23,253.16,19.45320483]
[1737237362830,0.59245358,253.22,253.16,19.45320483]
[1737237363039,23.776884,253.21,253.15,0.03]
[1737237363227,0.59245358,253.2,253.15,0.03]
[1737237363622,0.59245358,253.22,253.15,0.03]
[1737237364033,0.59245358,253.22,253.16,19.45320483]
[1737237364254,0.59245358,253.25,253.18,19.45320483]
[1737237364751,19.45320483,253.29,253.2,19.45320483]
[1737237364936,0.59245358,253.31,253.22,19.45320483]
[1737237365133,20.0,253.29,253.23,0.59224305]
[1737237365346,0.59245358,253.31,253.24,19.45320483]
[1737237365529,8.2298,253.32,253.25,0.59218234]
[1737237365843,8.2298,253.32,253.24,19.45320483]
[1737237365844,24.36933758,253.31,253.24,19.45320483]
[1737237366449,0.59245358,253.31,253.26,19.45320483]
[1737237366628,4.53965358,253.34,253.26,19.45320483]
[1737237367141,19.45320483,253.29,253.17,0.59219345]
[1737237367338,24.36933758,253.28,253.18,19.45320483]
[1737237367537,0.59245358,253.28,253.2,19.45320483]
[1737237367735,0.59245358,253.28,253.18,19.45320483]
[1737237367736,19.45320483,253.27,253.18,19.45320483]
[1737237367938,19.45320483,253.21,253.15,0.03]
[1737237368136,23.776884,253.18,253.15,0.03]
[1737237368338,23.776884,253.16,253.15,0.03]
[1737237368941,27.726884,253.16,253.15,0.03]
[1737237370047,3.9492,253.22,253.15,0.03]
[1737237370237,4.54165358,253.22,253.15,0.03]
[1737237370645,6.5858,253.24,253.16,0.59245885]
[1737237370837,21.68965841,253.25,253.16,0.59245885]
[1737237371038,9.8697,253.3,253.16,0.59245885]
[1737237371039,0.59245358,253.27,253.19,19.45320483]
[1737237371641,0.063,253.26,253.19,19.45320483]
[1737237371838,0.063,253.26,253.15,0.6223352]
[1737237372046,23.776884,253.22,253.15,0.03]
[1737237372339,20.04565841,253.21,253.15,0.03]
[1737237372665,23.776884,253.2,253.15,0.03]
[1737237372954,0.59245358,253.19,253.15,0.03]
[1737237373261,23.776884,253.18,253.15,0.03]
[1737237373564,0.59245358,253.17,253.15,0.03]
[1737237373854,23.9494,253.2,253.15,0.03]
[1737237373855,20.59245358,253.19,253.15,0.03]
[1737237374060,23.776884,253.18,253.15,0.03]
[1737237374357,20.0,253.19,253.15,0.03]
[1737237374555,3.9492,253.22,253.15,0.03]
[1737237374759,0.59245358,253.21,253.15,0.03]
[1737237374965,27.726284,253.2,253.15,0.03]
[1737237375148,0.59245358,253.19,253.15,0.03]
[1737237375546,3.9492,253.22,253.15,0.03]
[1737237375737,0.59245358,253.23,253.15,0.03]
[1737237375943,4.54145358,253.23,253.15,0.62245266]
[1737237376158,23.776884,253.22,253.15,0.62245266]
[1737237376354,4.54145358,253.23,253.15,0.62245266]
[1737237376566,0.063,253.26,253.2,19.45320483]
[1737237376744,23.839884,253.26,253.2,19.45320483]
[1737237377055,4.54105358,253.25,253.2,19.45320483]
[1737237377551,4.54105358,253.25,253.18,19.45320483]
[1737237377758,0.063,253.26,253.19,0.59237243]
[1737237378563,0.063,253.26,253.2,19.45320483]
[1737237378861,0.063,253.26,253.21,0.59227703]
[1737237379048,0.063,253.26,253.2,19.45320483]
[1737237379258,0.063,253.26,253.21,0.59231545]
[1737237380944,4.60395358,253.26,253.16,0.59230592]
[1737237381150,0.063,253.26,253.19,19.45320483]
[1737237381655,4.60395358,253.26,253.19,19.45320483]
[1737237381842,19.45320483,253.25,253.15,19.48320483]
[1737237382042,23.776884,253.23,253.15,0.03]
[1737237382239,0.59245358,253.22,253.15,0.03]
[1737237382544,23.776884,253.21,253.15,0.03]
[1737237382759,0.59245358,253.2,253.15,0.03]
[1737237383858,4.54195358,253.2,253.15,0.03]
[1737237385543,27.726584,253.19,253.15,0.03]
[1737237385749,23.776884,253.16,253.15,0.03]
[1737237386061,24.36933758,253.16,253.15,0.03]
[1737237387265,27.36260483,253.21,253.15,0.03]
[1737237387458,19.45320483,253.19,253.15,0.03]
[1737237388667,0.59245358,253.18,253.15,0.03]
[1737237389765,0.59245358,253.24,253.15,19.48320483]
[1737237389974,23.99425841,253.25,253.17,19.45320483]
[1737237390269,23.99425841,253.25,253.18,0.59240983]
[1737237390468,0.063,253.26,253.19,19.45320483]
[1737237390656,0.063,253.26,253.2,0.59230169]
[1737237390849,0.063,253.26,253.25,19.45320483]
[1737237391254,0.063,253.26,253.23,19.45320483]
[1737237392172,20.0,253.21,253.15,0.03]
[1737237392355,0.59245358,253.2,253.15,0.03]
[1737237392661,23.776884,253.19,253.15,0.03]
[1737237392868,0.59245358,253.18,253.15,0.03]
[1737237393453,19.45320483,253.22,253.15,0.03]
[1737237393658,0.59245358,253.21,253.15,0.03]
[1737237394071,4.54185358,253.21,253.15,0.03]
[1737237394370,0.59245358,253.22,253.15,0.03]
[1737237394569,4.54165358,253.22,253.15,0.03]
[1737237400378,23.776884,253.17,253.15,0.03]
[1737237400585,43.82254241,253.16,253.15,0.03]
[1737237402368,47.77254241,253.16,253.15,0.03]
[1737237408079,20.0,253.12,253.05,0.03]
[1737237408391,23.776884,253.08,253.05,0.03]
[1737237408586,23.776884,253.06,253.05,0.03]
[1737237409289,23.776884,253.06,253.05,0.0001]
[1737237409490,39.93906208,253.06,253.05,0.0001]
[1737237409880,20.0,253.03,252.95,0.03]
[1737237410082,24.36933758,253.02,252.95,0.03]
[1737237410290,12.20217808,253.01,252.95,0.03]
[1737237410594,0.59245358,253.0,252.95,0.03]
[1737237410784,0.59245358,253.05,252.96,12.20217808]
[1737237410985,0.59245358,253.05,252.98,12.20217808]
[1737237411378,4.55245358,253.06,252.99,20.10339115]
[1737237411593,20.0,253.05,252.99,19.51055525]
[1737237412099,11.4888059,253.14,253.03,19.51055525]
[1737237412100,3.9509,253.11,253.03,19.51055525]
[1737237412291,20.10300883,253.1,253.01,19.51055525]
[1737237412694,23.776884,253.09,253.01,19.51055525]
[1737237412999,23.776884,253.09,253.03,19.51055525]
[1737237413293,0.59245358,253.1,253.03,19.51055525]
[1737237413500,0.59245358,253.11,253.03,19.51055525]
[1737237413794,19.51055525,253.06,252.97,19.51055525]
[1737237413987,20.0,253.07,252.99,19.51055525]
[1737237414191,0.59245358,253.07,253.01,19.51055525]
[1737237414900,0.59245358,253.09,253.01,19.51055525]
[1737237415288,23.776884,253.07,252.97,19.51055525]
[1737237415598,19.51055525,253.04,252.95,19.54055525]
[1737237415772,23.776884,253.02,252.95,19.54055525]
[1737237416095,0.59245358,253.01,252.95,19.54055525]
[1737237417397,4.54485358,253.01,252.95,19.54055525]
[1737237417701,4.54485358,253.01,252.95,0.03]
[1737237418197,23.776884,253.0,252.95,0.03]
[1737237418401,0.59245358,252.99,252.95,0.03]
[1737237419592,4.54515358,252.99,252.95,0.03]
[1737237420397,0.59245358,252.99,252.95,0.03]
[1737237420592,20.59245358,253.01,252.95,19.54055525]
[1737237421696,0.59245358,253.01,252.97,19.51055525]
[1737237421901,4.54435358,253.05,252.97,19.51055525]
[1737237422479,43.28743925,253.04,252.95,19.54055525]
[1737237422687,43.87989283,253.04,252.95,19.54055525]
[1737237422904,43.87989283,253.04,252.96,0.59291151]
[1737237422905,20.10300883,253.04,252.96,0.59291151]
[1737237423086,1.57651957,253.09,252.96,0.59291151]
[1737237423087,3.9514,253.07,252.97,19.51055525]
[1737237423287,0.59245358,253.06,252.98,0.59283533]
[1737237423508,4.54385358,253.07,252.99,19.51055525]
[1737237424799,0.59245358,253.17,253.05,19.51055525]
[1737237425101,0.59245358,253.17,253.06,0.59259124]
[1737237425303,23.52365525,253.16,253.03,20.0]
[1737237425496,0.063,253.16,253.09,19.51055525]
[1737237426413,0.063,253.16,253.1,0.5925947]
[1737237426598,0.063,253.16,253.09,19.51055525]
[1737237427304,0.063,253.16,253.1,0.59260181]
[1737237427800,0.063,253.16,253.11,19.51055525]
[1737237428002,0.063,253.16,253.12,0.59252675]
[1737237428308,0.063,253.16,253.13,19.51055525]
[1737237430193,0.063,253.16,253.15,19.51055525]
[1737237433305,0.063,253.16,253.15,32.17313791]
[1737237434905,0.063,253.26,253.17,5.0]
[1737237435115,0.063,253.26,253.25,12.17313791]
[1737237435289,0.063,253.26,253.18,0.5922028]
[1737237435290,0.063,253.26,253.23,12.17313791]
[1737237435907,0.063,253.26,253.24,0.59224316]
[1737237436411,0.063,253.26,253.23,12.17313791]
[1737237436616,0.063,253.26,253.24,0.59224244]
[1737237439613,0.063,253.26,253.21,12.17313791]
[1737237441713,23.776884,253.24,253.16,12.17313791]
[1737237441911,20.0,253.18,253.06,0.59247053]
[1737237442211,12.17313791,253.11,253.02,12.17313791]
[1737237442411,24.36933758,253.1,253.02,12.17313791]
[1737237443393,28.32033758,253.1,253.02,12.17313791]
[1737237443817,23.776884,253.08,252.98,12.17313791]
[1737237444120,0.59245358,253.07,252.99,0.59281721]
[1737237445306,0.59245358,253.08,253.0,12.17313791]
[1737237445497,0.59245358,253.08,253.01,0.59277164]
[1737237446613,0.59245358,253.08,253.0,12.17313791]
[1737237446820,0.59245358,253.08,253.01,0.59278138]
[1737237447314,0.59245358,253.08,252.96,20.0]
[1737237447513,0.59245358,253.08,252.99,12.17313791]
[1737237447698,0.59245358,253.08,253.0,0.59277368]
[1737237447898,12.17313791,253.13,253.03,12.17313791]
[1737237448202,23.776884,253.06,252.97,0.59266594]
[1737237448415,0.59245358,253.05,252.96,12.76601858]
[1737237448610,12.17313791,253.03,252.95,0.62289445]
[1737237448811,0.59245358,253.02,252.95,0.03]
[1737237449307,4.54465358,253.02,252.95,0.03]
[1737237449504,12.76559149,253.08,252.98,12.17313791]
[1737237449705,12.17313791,253.12,253.02,12.17313791]
[1737237449907,2.21545358,253.14,253.04,12.17313791]
[1737237450196,12.17313791,253.17,253.08,12.17313791]
[1737237450416,36.12283791,253.19,253.1,12.17313791]
[1737237450615,0.59245358,253.18,253.1,12.17313791]
[1737237450916,1.5608,253.2,253.11,0.59255164]
[1737237451123,1.5608,253.2,253.12,12.17313791]
[1737237451422,1.5608,253.2,253.13,0.59246459]
[1737237452923,0.59245358,253.22,253.13,0.59246459]
[1737237454022,23.776884,253.21,253.13,0.59246459]
[1737237454224,23.776884,253.18,253.08,12.17313791]
[1737237454416,12.76559149,253.17,253.06,12.17313791]
[1737237454720,12.76559149,253.17,253.07,0.59260408]
[1737237454913,12.17313791,253.15,253.13,0.03]
[1737237455119,24.36933758,253.14,253.13,0.03]
[1737237456015,28.31963758,253.14,253.13,0.03]
[1737237457616,4.54275358,253.14,253.13,0.03]
[1737237459525,3.9503,253.14,253.13,0.03]
[1737237459730,12.76559149,253.15,253.13,0.03]
[1737237460030,3.9501,253.16,253.13,0.03]
[1737237460326,4.54255358,253.16,253.13,0.03]
[1737237461221,12.17313791,253.19,253.13,0.03]
[1737237461429,0.59245358,253.18,253.13,0.03]
[1737237461631,16.12273791,253.19,253.13,0.03]
[1737237462503,3.9496,253.19,253.13,0.03]
[1737237462705,4.54205358,253.19,253.13,0.03]
[1737237463525,0.59245358,253.2,253.13,0.03]
[1737237464202,0.59245358,253.2,253.13,0.62250101]
[1737237464921,3.9495,253.2,253.13,0.62250101]
[1737237465322,11.4952,253.26,253.16,12.17313791]
[1737237465323,12.76559149,253.25,253.16,12.17313791]
[1737237465510,12.17313791,253.23,253.14,12.17313791]
[1737237465715,0.59245358,253.22,253.15,0.59245218]
[1737237466626,4.54165358,253.22,253.15,0.59245218]
[1737237468025,0.063,253.26,253.2,12.17313791]
[1737237468526,0.063,253.26,253.22,12.17313791]
[1737237469428,35.95002191,253.25,253.15,12.17313791]
[1737237469631,0.59245358,253.24,253.16,0.5924322]
[1737237469931,0.063,253.26,253.19,12.17313791]
[1737237470135,0.063,253.26,253.2,0.59231573]
[1737237471540,4.0115,253.26,253.2,0.59231573]
[1737237472736,12.76559149,253.25,253.15,12.17313791]
[1737237473134,12.76559149,253.25,253.17,12.17313791]
[1737237473431,4.60395358,253.26,253.18,0.59233901]
[1737237474622,4.0115,253.26,253.18,0.59233901]
[1737237476538,0.063,253.26,253.18,0.59233901]
[1737237476731,0.063,253.26,253.19,12.17313791]
[1737237476946,0.063,253.26,253.2,0.59231177]
[1737237478127,4.0115,253.26,253.2,0.59231177]
[1737237479240,0.063,253.26,253.2,0.59231177]
[1737237480224,0.063,253.26,253.21,12.17313791]
[1737237480420,0.063,253.26,253.24,12.17313791]
[1737237480623,0.063,253.26,253.25,0.59213545]
[1737237483443,4.0115,253.26,253.17,12.17313791]
[1737237483743,4.0115,253.26,253.19,12.17313791]
[1737237483940,4.0115,253.26,253.2,0.59231188]